bitfinex/quotes_ETHUSD_20241212
["timestamp","ask_amount","ask_price","bid_price","bid_amount"]
[1734037656538,2.6019123,3877.1,3876.1,0.8294]
[1734037656878,0.64619999,3877.1,3875.6,0.655]
[1734037657087,2.5795,3876.8,3875.7,3.14363]
[1734037657288,0.3816,3877.0,3875.7,0.8215]
[1734037657489,0.3816,3877.0,3876.3,2.32177]
[1734037657714,0.56479951,3877.2,3876.4,0.8215]
[1734037657715,1.63970554,3877.2,3876.4,0.8215]
[1734037657914,0.89131009,3877.1,3876.4,0.8215]
[1734037658121,0.56479951,3877.2,3876.4,0.8215]
[1734037658327,1.25476126,3877.1,3875.5,3.0]
[1734037658473,2.79358418,3877.3,3876.0,2.32192]
[1734037658474,3.9164111,3877.2,3876.0,2.32192]
[1734037658816,0.89138762,3877.1,3876.0,2.32192]
[1734037659673,1.09754833,3877.0,3875.8,2.32209]
[1734037659870,4.47914017,3877.0,3875.7,3.8082]
[1734037660104,2.96121,3876.6,3875.7,0.8082]
[1734037660307,3.5876859,3876.6,3875.7,0.8082]
[1734037660692,1.0080759,3876.6,3875.7,0.8082]
[1734037660907,1.0080759,3876.6,3875.1,2.8371918]
[1734037660908,2.89437758,3876.6,3875.1,0.8082]
[1734037661077,2.89437758,3876.6,3875.1,3.1307]
[1734037661078,2.57991,3876.1,3875.1,3.1307]
[1734037661280,0.0226423,3876.0,3875.1,0.8082]
[1734037661482,0.3816,3875.9,3874.8,2.32264]
[1734037661787,0.0226423,3875.8,3874.8,3.13084]
[1734037662018,0.0226423,3875.8,3874.9,0.313084]
[1734037662388,2.6027623,3875.8,3874.9,0.313084]
[1734037662613,0.3816,3875.9,3874.9,0.313084]
[1734037662827,1.61235905,3876.4,3874.4,0.51884505]
[1734037662828,0.3816,3876.3,3875.3,3.11696]
[1734037663481,2.96138,3876.3,3875.3,3.11696]
[1734037664897,0.89151606,3876.2,3875.3,0.7946]
[1734037665247,1.71887219,3876.3,3875.3,0.7946]
[1734037665545,0.27937782,3876.2,3875.3,0.7946]
[1734037666045,0.3816,3876.3,3875.3,0.7946]
[1734037666243,0.3816,3876.3,3875.3,3.11699]
[1734037666403,2.9840223,3876.3,3875.3,0.7946]
[1734037666802,2.57986,3876.2,3875.3,0.7946]
[1734037667632,1.47914833,3876.3,3875.3,0.7946]
[1734037667815,2.58005,3875.9,3875.3,0.7946]
[1734037668023,2.57992,3876.1,3875.3,0.7946]
[1734037668261,1.45650603,3876.3,3875.3,0.7946]
[1734037668548,2.57992,3876.1,3875.3,0.7946]
[1734037668766,2.57999,3876.0,3875.3,0.7946]
[1734037669007,2.98590383,3876.0,3875.3,0.7946]
[1734037669654,0.0226423,3875.9,3875.3,0.7946]
[1734037670020,2.58012,3875.8,3874.9,0.8154]
[1734037670234,0.0226423,3875.9,3874.9,0.8154]
[1734037670419,0.0226423,3875.9,3874.9,3.13804]
[1734037670634,0.0226423,3875.9,3875.0,2.32257]
[1734037671517,2.58011,3875.8,3874.9,1.184204]
[1734037671735,0.40591383,3876.0,3874.9,0.8154]
[1734037671936,2.58012,3875.8,3874.9,0.8154]
[1734037672756,0.50668949,3876.1,3874.9,0.8154]
[1734037672757,0.0226423,3876.1,3874.9,0.8154]
[1734037672933,0.3816,3876.3,3874.4,3.0]
[1734037672934,2.96138,3876.3,3875.0,0.8325]
[1734037673136,1.07490603,3876.5,3875.5,2.32226]
[1734037673336,0.89151092,3876.4,3875.5,2.32226]
[1734037674857,0.91415322,3876.4,3875.3,0.8325]
[1734037675032,0.89164153,3876.3,3875.3,3.15489]
[1734037675235,2.57972,3876.4,3875.3,3.15489]
[1734037677595,3.96144254,3876.5,3875.4,2.3223]
[1734037677893,2.2290745,3876.4,3875.5,2.32226]
[1734037678462,2.2290745,3876.4,3875.3,3.15489]
[1734037678678,2.2290745,3876.4,3875.3,4.057634]
[1734037678891,2.2290745,3876.4,3875.3,1.735244]
[1734037679071,1.07490603,3876.7,3875.7,2.32211]
[1734037679273,1.33738843,3876.8,3875.7,2.32211]
[1734037679472,3.65428603,3876.9,3875.7,2.32211]
[1734037679763,2.57971,3876.4,3875.6,0.794]
[1734037680100,0.257971,3876.3,3875.6,0.794]
[1734037680393,2.57971,3876.4,3875.6,0.794]
[1734037680801,3.56504131,3876.6,3875.6,0.794]
[1734037681015,2.71359205,3876.9,3875.6,0.794]
[1734037681016,3.47128208,3876.5,3875.6,0.794]
[1734037681297,2.57966,3876.5,3875.6,0.794]
[1734037681458,2.57966,3876.5,3875.6,1.405627]
[1734037682361,1.07490603,3876.8,3875.6,1.405627]
[1734037682565,2.57952,3876.7,3875.6,1.405627]
[1734037682965,2.57964,3876.5,3875.6,0.794]
[1734037684103,2.57967,3876.5,3875.6,0.794]
[1734037684869,1.07490603,3876.7,3875.6,0.794]
[1734037685099,0.89173727,3876.7,3875.6,0.794]
[1734037685302,0.891748,3876.6,3875.7,2.93378]
[1734037685603,3.91708473,3876.7,3875.7,2.93378]
[1734037685808,0.89174861,3876.6,3875.7,2.93378]
[1734037686401,3.91720213,3876.7,3875.7,2.93378]
[1734037686608,0.89179418,3876.6,3875.7,2.93378]
[1734037686907,2.57952,3876.7,3875.7,2.93378]
[1734037687106,2.57952,3876.7,3875.6,0.794]
[1734037687107,0.89183021,3876.6,3875.6,0.794]
[1734037687314,0.0226423,3876.6,3875.6,0.794]
[1734037687602,2.57975,3876.4,3875.6,0.794]
[1734037688470,2.6022223,3876.6,3875.6,0.794]
[1734037688675,0.89189865,3876.5,3875.6,0.794]
[1734037688973,2.57958,3876.6,3875.6,0.794]
[1734037689177,0.89196878,3876.5,3875.6,0.794]
[1734037689484,3.66588489,3876.6,3875.6,3.1162]
[1734037690395,3.4716332,3876.5,3875.6,0.794]
[1734037690705,1.08630489,3876.6,3875.6,0.794]
[1734037690906,0.8919903,3876.6,3875.6,0.794]
[1734037691073,0.89199202,3876.6,3875.6,0.794]
[1734037691271,4.80961192,3876.6,3875.6,3.1162]
[1734037691541,2.57958,3876.6,3875.6,0.794]
[1734037691804,2.49013528,3876.7,3875.7,2.32216]
[1734037692026,0.89205819,3876.6,3876.1,0.7629]
[1734037692175,1.07490603,3877.0,3876.1,0.7629]
[1734037692376,1.33817538,3877.1,3876.5,0.7629]
[1734037692591,1.78423384,3877.4,3876.5,0.7629]
[1734037692592,1.07490603,3877.4,3876.6,2.32159]
[1734037692794,1.60615911,3877.4,3876.5,0.7629]
[1734037693003,2.49820762,3877.4,3876.5,0.7629]
[1734037693205,4.44843585,3877.4,3876.5,0.7629]
[1734037693407,0.89204288,3877.3,3876.5,0.7629]
[1734037693706,3.11036308,3877.4,3876.5,0.7629]
[1734037693906,0.89206889,3877.3,3876.5,0.7629]
[1734037694125,0.89207509,3877.3,3876.5,0.7629]
[1734037694410,1.07490603,3877.5,3876.6,2.32161]
[1734037694605,1.96694943,3877.5,3876.6,2.32161]
[1734037694805,2.2301085,3877.5,3876.6,2.32161]
[1734037695515,3.30501453,3877.5,3876.6,2.32161]
[1734037695707,6.93877103,3877.5,3876.5,0.7629]
[1734037695902,2.2301085,3877.4,3876.5,0.7629]
[1734037696310,2.57925,3877.1,3876.5,0.7629]
[1734037696548,1.07490603,3877.3,3876.5,0.7629]
[1734037696734,4.54627757,3877.2,3876.5,0.7629]
[1734037696955,0.89220868,3877.1,3876.5,0.7629]
[1734037697239,2.23050635,3877.1,3876.5,0.7629]
[1734037697742,0.89220868,3877.0,3876.5,0.7629]
[1734037697941,2.4132037,3877.1,3876.5,0.7629]
[1734037698127,0.89230897,3877.0,3876.5,0.7629]
[1734037698333,1.33829767,3877.1,3876.5,0.7629]
[1734037698522,2.14475664,3877.2,3876.5,0.7629]
[1734037698718,0.89237444,3877.1,3876.5,0.7629]
[1734037698918,3.30584213,3877.1,3876.5,0.7629]
[1734037699120,4.72394664,3877.2,3876.5,0.7629]
[1734037699320,2.23092692,3877.1,3876.5,0.7629]
[1734037699507,3.30589033,3877.1,3876.5,0.7629]
[1734037699729,0.89237077,3877.0,3876.5,0.7629]
[1734037700041,1.33860653,3877.1,3876.5,0.7629]
[1734037700244,2.14475664,3877.2,3876.5,0.7629]
[1734037700449,0.89234658,3877.1,3876.5,0.7629]
[1734037700861,0.89234658,3877.1,3876.5,1.09715756]
[1734037701067,1.61235905,3877.5,3876.5,3.08458]
[1734037701068,1.07490603,3877.5,3876.5,3.08458]
[1734037701359,3.65395603,3877.4,3876.5,0.7629]
[1734037701643,2.23048163,3877.3,3876.5,0.7629]
[1734037701804,1.07490603,3877.4,3876.5,0.7629]
[1734037702007,1.98973243,3877.3,3876.5,0.7629]
[1734037702209,4.04841657,3877.2,3876.5,0.7629]
[1734037702438,0.8921841,3877.1,3876.5,0.7629]
[1734037702665,0.0226423,3877.0,3876.5,0.7629]
[1734037703622,1.36092221,3877.1,3876.5,0.7629]
[1734037703829,1.81795632,3877.2,3876.5,0.7629]
[1734037704021,0.74305029,3877.2,3876.5,0.7629]
[1734037704255,2.41300977,3877.4,3876.5,0.7629]
[1734037704545,3.3050743,3877.4,3876.5,0.7629]
[1734037705144,2.23016827,3877.3,3876.5,0.7629]
[1734037705350,3.3050743,3877.3,3876.5,0.7629]
[1734037705517,0.89206453,3877.2,3876.5,0.7629]
[1734037705714,1.33804124,3877.3,3876.5,0.7629]
[1734037706065,3.56504131,3877.1,3876.5,0.7629]
[1734037706270,3.49404095,3877.0,3876.5,0.7629]
[1734037706585,4.80971515,3876.9,3876.5,0.7629]
[1734037706750,3.30524682,3876.8,3876.0,0.8067]
[1734037706956,2.96092,3877.0,3876.0,0.8067]
[1734037707150,0.89208234,3876.9,3876.0,0.8067]
[1734037707328,0.89208234,3876.9,3876.0,3.12865]
[1734037708313,1.61235905,3877.2,3876.3,0.55]
[1734037708314,1.07490603,3877.2,3876.3,0.55]
[1734037708512,1.07490603,3877.2,3876.1,0.57579697]
[1734037708513,1.07490603,3877.5,3877.0,0.8067]
[1734037708752,1.96697501,3877.5,3877.0,0.8067]
[1734037709057,0.89206898,3877.4,3877.0,0.8067]
[1734037709263,1.07490603,3877.6,3877.0,0.8067]
[1734037709425,1.96685153,3877.6,3877.0,0.8067]
[1734037709628,3.30479484,3877.6,3877.0,0.8067]
[1734037709950,4.80888881,3877.5,3877.0,0.8067]
[1734037710155,2.579,3877.5,3877.0,0.8067]
[1734037710376,3.47095248,3877.4,3877.0,0.8067]
[1734037710526,3.47104127,3877.3,3877.0,0.8067]
[1734037710725,2.57912,3877.3,3877.0,0.8067]
[1734037711363,1.07490603,3877.4,3877.0,0.8067]
[1734037711588,1.96684185,3877.5,3877.0,0.8067]
[1734037711735,4.8088199,3877.5,3877.0,0.8067]
[1734037711936,4.80893239,3877.4,3877.0,0.8067]
[1734037712155,2.57904,3877.4,3877.0,0.8067]
[1734037712532,0.89191563,3877.3,3877.0,0.8067]
[1734037712782,1.87368607,3877.5,3877.0,0.8067]
[1734037712783,3.91692814,3877.4,3877.0,0.8067]
[1734037712957,0.89191567,3877.3,3877.0,0.8067]
[1734037713267,4.45266607,3877.5,3877.0,0.8067]
[1734037713465,2.22975903,3877.4,3877.0,0.8067]
[1734037714462,3.10840898,3877.4,3877.0,0.8067]
[1734037714666,0.89195947,3877.3,3877.0,0.8067]
[1734037714848,3.29149995,3877.4,3877.0,0.8067]
[1734037715184,0.89197305,3877.3,3877.0,0.8067]
[1734037715383,1.96687908,3877.3,3877.0,0.8067]
[1734037715596,0.87864995,3877.4,3877.0,0.8067]
[1734037715772,4.18366191,3877.4,3877.0,0.8067]
[1734037715932,2.57918,3877.2,3877.0,0.8067]
[1734037716242,3.47141918,3877.1,3876.2,3.7974]
[1734037716442,2.2305156,3877.0,3876.2,0.7974]
[1734037716672,0.89223528,3876.9,3876.2,0.7974]
[1734037716833,0.45463813,3876.9,3876.2,0.7974]
[1734037717028,0.89227906,3876.8,3876.2,0.7974]
[1734037717229,1.52954416,3876.9,3876.2,0.7974]
[1734037717230,0.89230571,3876.7,3876.2,0.7974]
[1734037717455,1.33836255,3876.8,3876.2,0.7974]
[1734037717662,0.89240047,3876.7,3876.2,0.7974]
[1734037717867,2.86814508,3876.9,3876.2,0.7974]
[1734037718074,3.30591327,3876.8,3876.2,0.7974]
[1734037718273,0.89241869,3876.7,3876.2,0.7974]
[1734037718490,0.45463813,3876.9,3876.2,1.109337]
[1734037718491,1.07490603,3876.9,3876.2,1.109337]
[1734037718711,1.07490603,3877.2,3876.4,0.7646]
[1734037718862,1.07490603,3877.0,3876.4,0.7646]
[1734037719061,0.89253136,3876.9,3876.4,0.7646]
[1734037720690,2.23146939,3876.9,3876.4,0.7646]
[1734037720897,1.07490603,3877.0,3876.4,0.7646]
[1734037721188,0.89266834,3876.9,3876.4,0.7646]
[1734037722260,1.07490603,3877.0,3876.4,0.7646]
[1734037722463,2.23207233,3876.9,3876.4,0.7646]
[1734037722804,1.07490603,3877.0,3876.4,0.7646]
[1734037722986,0.89283344,3876.9,3876.4,0.7646]
[1734037723305,0.89283344,3876.8,3876.4,0.7646]
[1734037723485,1.07490603,3876.9,3876.4,0.7646]
[1734037723666,0.89294367,3876.8,3876.4,0.7646]
[1734037723873,0.89295028,3876.7,3876.4,0.7646]
[1734037724058,1.33941551,3876.7,3876.4,0.7646]
[1734037724259,0.89308691,3876.6,3876.4,0.7646]
[1734037724454,1.33963933,3876.7,3876.4,0.7646]
[1734037724803,1.07490603,3876.8,3876.4,0.7646]
[1734037724990,0.89307827,3876.7,3876.4,0.7646]
[1734037725183,2.41452344,3876.8,3876.4,0.7646]
[1734037725410,0.89310927,3876.7,3876.4,0.7646]
[1734037725615,1.3396637,3876.7,3876.4,0.7646]
[1734037725754,1.07490603,3876.8,3876.4,0.7646]
[1734037725961,0.89310442,3876.7,3876.4,0.7646]
[1734037726308,2.41456266,3876.8,3876.4,0.7646]
[1734037726513,0.89312748,3876.7,3876.4,0.7646]
[1734037726656,1.07490603,3876.8,3876.4,0.7646]
[1734037726859,0.89312885,3876.7,3876.4,0.7646]
[1734037727058,0.89314324,3876.6,3876.4,0.7646]
[1734037727368,0.89321852,3876.5,3876.4,0.7646]
[1734037728278,1.07490603,3876.6,3876.4,0.7646]
[1734037728479,0.89327522,3876.5,3876.4,0.7646]
[1734037729318,0.89327522,3876.5,3875.4,3.5067618]
[1734037729319,2.58013,3875.8,3875.5,0.7503]
[1734037729523,2.58014,3875.8,3875.5,0.7503]
[1734037729667,4.81413373,3875.7,3875.5,0.7503]
[1734037729867,0.89356051,3875.6,3875.5,0.7503]
[1734037730217,1.62094771,3876.0,3875.5,0.7503]
[1734037730218,1.0806318,3876.0,3875.5,0.7503]
[1734037730360,3.31411351,3875.9,3875.5,0.7503]
[1734037730565,1.0806318,3876.0,3875.5,0.7503]
[1734037730809,2.23344525,3875.9,3875.5,0.7503]
[1734037731111,1.0806318,3876.0,3875.5,0.7503]
[1734037731258,2.23308372,3875.9,3875.5,0.7503]
[1734037731458,0.89323349,3875.8,3875.5,0.7503]
[1734037731664,1.33985023,3875.9,3875.5,0.7503]
[1734037732111,1.0806318,3876.0,3875.5,0.7503]
[1734037732310,0.89310172,3875.9,3875.5,0.7503]
[1734037732513,2.42028438,3876.0,3875.5,0.7503]
[1734037732678,2.23277328,3875.9,3875.5,0.7503]
[1734037732897,0.89311783,3875.8,3875.5,0.7503]
[1734037733067,3.6605818,3876.1,3875.5,0.7503]
[1734037733262,3.31304615,3876.0,3875.5,0.7503]
[1734037733468,0.89296574,3875.9,3875.5,0.7503]
[1734037733702,1.0806318,3876.2,3875.5,0.7503]
[1734037733906,1.62094771,3876.4,3875.5,0.7503]
[1734037733907,5.89293413,3876.1,3875.5,0.7503]
[1734037734106,0.89295693,3876.0,3875.5,0.7503]
[1734037735327,0.89295693,3876.0,3875.0,2.49013528]
[1734037735328,1.0806318,3876.4,3876.0,2.32192]
[1734037735471,3.6600818,3876.8,3876.1,0.8092]
[1734037735670,2.23151781,3876.7,3876.1,0.8092]
[1734037735980,0.43645738,3876.9,3876.1,0.8092]
[1734037735981,4.09646918,3876.9,3876.1,0.8092]
[1734037736180,0.8925932,3876.8,3876.1,0.8092]
[1734037736374,0.43645738,3876.9,3876.1,0.8092]
[1734037736964,0.43645738,3876.9,3876.1,1.122316]
[1734037737410,0.43645738,3876.9,3876.1,3.444216]
[1734037737794,0.43645738,3876.9,3876.2,2.32185]
[1734037738705,0.43645738,3876.9,3876.1,1.122316]
[1734037739822,0.43645738,3876.9,3876.2,2.32183]
[1734037740402,0.43645738,3876.9,3876.3,2.32177]
[1734037740604,0.43645738,3876.9,3876.5,0.7903]
[1734037743137,2.57973,3876.4,3875.7,0.7644]
[1734037743291,2.57993,3876.1,3875.7,0.7644]
[1734037743488,0.0226423,3876.0,3875.7,0.7644]
[1734037743729,6.15059708,3876.3,3875.7,0.7644]
[1734037743891,2.23220006,3876.2,3875.7,0.7644]
[1734037744226,2.97459155,3876.2,3875.7,0.7644]
[1734037744536,0.89280027,3876.1,3875.7,0.7644]
[1734037744828,2.57993,3876.1,3875.7,0.7644]
[1734037745133,2.08160602,3876.2,3875.7,0.7644]
[1734037745134,3.32223149,3876.2,3875.7,0.7644]
[1734037745290,3.6604018,3876.4,3875.7,0.7644]
[1734037745612,3.31243567,3876.3,3875.7,0.7644]
[1734037746395,4.81165387,3876.2,3875.7,0.7644]
[1734037746593,2.57985,3876.2,3875.7,0.7644]
[1734037747126,3.6604118,3876.3,3875.7,0.7644]
[1734037747437,0.89263836,3876.2,3875.7,0.7644]
[1734037747731,1.0806318,3876.4,3875.7,0.7644]
[1734037748027,0.89260377,3876.3,3875.7,0.7644]
[1734037748189,3.6602218,3876.6,3875.7,0.7644]
[1734037748393,2.23142445,3876.5,3875.7,0.7644]
[1734037749089,0.89258001,3876.4,3875.7,0.7644]
[1734037749295,2.23149786,3876.4,3875.7,1.073073]
[1734037749524,0.89258403,3876.3,3875.7,0.7644]
[1734037750042,3.47238403,3876.3,3875.7,0.7644]
[1734037750197,2.57996,3876.1,3875.7,0.7644]
[1734037750829,2.58007,3875.9,3875.3,0.7962]
[1734037751028,0.0226423,3875.8,3875.3,0.7962]
[1734037751347,2.58007,3875.9,3875.3,0.7962]
[1734037751719,2.57992,3876.1,3875.3,0.7962]
[1734037752058,0.78612695,3876.1,3875.3,0.7962]
[1734037752363,2.57992,3876.1,3875.3,0.7962]
[1734037752660,2.57979,3876.3,3875.3,0.7962]
[1734037752824,2.57985,3876.2,3875.3,0.7962]
[1734037753225,2.57992,3876.1,3875.3,0.7962]
[1734037753425,4.65139889,3876.7,3875.3,0.7962]
[1734037753426,2.57979,3876.3,3875.3,0.7962]
[1734037753625,1.0806318,3876.5,3875.4,0.7629]
[1734037753876,4.5528801,3876.4,3875.4,0.7629]
[1734037754175,2.57985,3876.2,3875.4,0.7629]
[1734037755031,0.89246788,3876.1,3875.4,0.7629]
[1734037755261,2.58017,3875.8,3875.4,0.7629]
[1734037755477,0.34952802,3875.7,3875.4,0.7629]
[1734037755661,1.0806318,3876.1,3875.4,0.7629]
[1734037755866,1.97315658,3876.1,3875.4,0.7629]
[1734037756050,2.58005,3875.9,3875.4,0.7629]
[1734037756729,1.0806318,3876.0,3875.4,0.7629]
[1734037756931,1.97317691,3876.0,3875.4,0.7629]
[1734037757186,4.31229333,3876.0,3875.4,0.7629]
[1734037757467,1.00029876,3876.0,3875.4,0.7629]
[1734037757666,2.41931354,3876.2,3875.4,0.7629]
[1734037757973,2.23116436,3876.1,3875.4,0.7629]
[1734037758123,1.0806318,3876.2,3875.4,0.7629]
[1734037758329,0.89250783,3876.1,3875.4,0.7629]
[1734037758525,1.33874786,3876.2,3875.4,0.7629]
[1734037758730,1.0806318,3876.3,3875.4,0.7629]
[1734037758931,1.97310469,3876.2,3875.4,0.7629]
[1734037759289,1.97310469,3876.1,3875.4,0.7629]
[1734037759485,1.53554438,3876.3,3875.4,0.7629]
[1734037759788,1.97312513,3876.2,3875.4,0.7629]
[1734037759972,0.89249333,3876.1,3875.4,0.7629]
[1734037760158,1.33884283,3876.2,3875.4,0.7629]
[1734037760362,1.53554438,3876.3,3875.4,0.7629]
[1734037760558,0.89255353,3876.2,3875.4,3.08522]
[1734037760790,1.97318533,3876.2,3875.4,3.08522]
[1734037761168,0.89255353,3876.1,3875.4,3.08522]
[1734037761392,2.23138383,3876.1,3875.4,3.08522]
[1734037761553,1.0806318,3876.2,3875.4,3.08522]
[1734037761746,0.89265535,3876.1,3875.4,3.08522]
[1734037762049,2.58009,3875.9,3875.4,0.7629]
[1734037762362,1.0806318,3876.0,3875.4,0.7629]
[1734037762561,0.89274473,3876.0,3875.4,0.7629]
[1734037763970,3.47276473,3876.0,3875.4,0.7629]
[1734037764305,0.89274473,3875.9,3875.4,0.7629]
[1734037764675,2.58002,3876.0,3875.4,0.7629]
[1734037764871,2.231685,3875.9,3875.4,0.7629]
[1734037765071,0.8927096,3875.8,3875.4,0.7629]
[1734037765353,1.0806318,3876.1,3875.4,0.7629]
[1734037765590,1.0806318,3876.1,3875.4,1.071434]
[1734037765790,2.41958746,3876.2,3875.6,2.32221]
[1734037765976,1.0806318,3876.4,3875.7,0.8138]
[1734037766389,4.86590432,3877.0,3875.4,0.308534]
[1734037766390,1.0806318,3876.7,3876.0,0.8138]
[1734037766560,1.0806318,3876.8,3876.5,0.8138]
[1734037766800,1.0806318,3877.0,3876.5,0.8138]
[1734037767152,0.89244811,3877.0,3876.5,0.8138]
[1734037767509,1.0806318,3877.4,3876.6,2.89736316]
[1734037767819,1.0806318,3877.9,3877.3,2.32119]
[1734037768016,0.89225523,3877.8,3877.4,0.7837]
[1734037768330,1.0806318,3878.0,3877.4,0.7837]
[1734037768830,1.97254459,3878.0,3877.4,0.7837]
[1734037769181,0.89191279,3877.9,3877.4,0.7837]
[1734037769434,3.13002772,3878.0,3877.4,0.7837]
[1734037769648,0.71152674,3878.0,3877.4,0.7837]
[1734037770299,1.0806318,3878.1,3877.4,0.7837]
[1734037770528,0.89136334,3878.1,3877.4,0.7837]
[1734037770732,3.30904405,3878.1,3877.4,0.7837]
[1734037771068,0.89138397,3878.0,3877.4,0.7837]
[1734037771229,1.33704409,3878.1,3877.4,0.7837]
[1734037771435,2.88988405,3878.1,3877.4,0.7837]
[1734037771635,0.89112517,3878.0,3877.4,0.7837]
[1734037771964,2.5789,3877.7,3877.0,0.7794]
[1734037772167,0.3816,3877.9,3877.0,0.7794]
[1734037772480,0.89477528,3877.9,3877.0,0.7794]
[1734037772647,3.47354528,3877.9,3877.0,0.7794]
[1734037772993,2.22763011,3877.8,3877.0,0.7794]
[1734037773277,0.89477528,3877.9,3877.0,0.7794]
[1734037773480,1.74234616,3878.1,3877.0,0.7794]
[1734037773630,0.66171436,3878.1,3877.0,0.7794]
[1734037773830,2.88881898,3878.1,3877.0,0.7794]
[1734037774134,0.66171436,3878.1,3877.0,3.10078]
[1734037774331,3.24029436,3878.1,3877.0,3.10078]
[1734037774659,2.57873,3877.9,3877.0,0.7794]
[1734037774966,0.0226423,3877.8,3877.0,0.7794]
[1734037775271,1.74234616,3878.1,3877.0,0.7794]
[1734037775272,2.57885,3877.7,3877.0,0.7794]
[1734037775956,2.5787,3878.0,3877.0,0.7794]
[1734037776129,2.57872,3877.9,3877.0,0.7794]
[1734037778736,2.57879,3877.8,3877.0,0.7794]
[1734037778970,2.90284044,3877.8,3877.0,0.7794]
[1734037780069,0.32405044,3877.8,3877.0,0.7794]
[1734037780272,3.24033436,3878.1,3877.0,0.7794]
[1734037780478,2.57877,3877.9,3877.0,0.7794]
[1734037781679,2.57855,3878.2,3877.1,2.32131]
[1734037781879,2.57855,3878.2,3877.2,0.8075]
[1734037782080,5.57824,3878.7,3877.5,0.8075]
[1734037782081,1.0806318,3878.5,3877.5,0.8075]
[1734037782279,1.33492864,3878.6,3877.6,2.32101]
[1734037782483,3.6588218,3878.7,3877.7,0.8075]
[1734037782484,2.57819,3878.7,3877.7,0.8075]
[1734037782784,0.4362425,3878.8,3877.9,1.3659]
[1734037782947,0.4362425,3878.8,3878.0,2.32077]
[1734037783151,0.4362425,3878.8,3878.0,0.8159]
[1734037783382,0.4362425,3878.8,3878.1,0.8159]
[1734037784546,2.62423885,3879.3,3878.2,2.87066]
[1734037784747,2.57773,3879.4,3878.3,0.8159]
[1734037784970,1.76354223,3879.6,3877.9,0.55]
[1734037784971,4.34113223,3879.6,3878.5,0.55]
[1734037785279,4.34113223,3879.6,3878.6,0.8159]
[1734037785687,1.76354223,3879.6,3878.6,0.8159]
[1734037785886,2.57772,3879.4,3878.6,0.8159]
[1734037786384,0.0226423,3879.3,3878.6,0.8159]
[1734037786586,1.98032068,3879.6,3878.6,0.8159]
[1734037786759,2.57783,3879.3,3878.6,0.8159]
[1734037786960,2.5778,3879.3,3878.6,0.8159]
[1734037787178,0.02266773,3879.2,3878.6,0.8159]
[1734037787484,2.57766,3879.5,3878.7,0.8159]
[1734037787661,0.02266699,3879.1,3878.7,0.8159]
[1734037787863,2.57766,3879.5,3878.7,0.8159]
[1734037788053,0.02266626,3879.0,3878.7,0.8159]
[1734037788254,2.57772,3879.4,3878.7,0.8159]
[1734037788455,0.02266552,3878.9,3878.7,0.8159]
[1734037788748,0.02623736,3878.8,3878.7,0.8159]
[1734037788990,2.57797,3879.1,3878.7,0.8159]
[1734037789186,0.02623736,3878.8,3878.7,0.8159]
[1734037789372,2.57797,3879.1,3878.7,0.8159]
[1734037789685,0.02623736,3878.8,3878.7,0.8159]
[1734037789887,0.68313975,3879.4,3878.7,0.8159]
[1734037790089,0.02623736,3878.8,3878.7,0.8159]
[1734037790254,0.5024362,3879.3,3878.7,0.8159]
[1734037790455,0.02623736,3878.8,3878.7,0.8159]
[1734037790655,2.57797,3879.1,3878.7,0.8159]
[1734037790963,2.578,3879.0,3878.7,0.8159]
[1734037791174,2.60423884,3879.0,3878.7,0.8159]
[1734037791491,0.02623884,3879.0,3878.7,0.8159]
[1734037791889,2.57785,3879.2,3878.7,0.8159]
[1734037792381,0.02623958,3879.1,3878.7,0.8159]
[1734037793301,2.57773,3879.4,3878.7,0.8159]
[1734037793493,0.02619311,3879.0,3878.7,0.8159]
[1734037793657,2.57773,3879.4,3878.7,0.8159]
[1734037793858,0.02620952,3878.9,3878.7,0.8159]
[1734037794191,0.02620878,3878.8,3878.7,0.8159]
[1734037794496,2.57773,3879.4,3878.7,0.8159]
[1734037794658,0.0262145,3878.8,3878.7,0.8159]
[1734037794857,2.57773,3879.4,3878.7,0.8159]
[1734037795366,0.02621819,3879.3,3878.7,0.8159]
[1734037796578,2.60405819,3879.3,3878.7,0.8159]
[1734037797609,2.57786,3879.2,3878.7,0.8159]
[1734037797789,2.57792,3879.1,3878.7,0.8159]
[1734037797991,2.60413671,3879.1,3878.7,0.8159]
[1734037798180,2.57799,3879.0,3878.7,0.8159]
[1734037798386,0.02621598,3879.0,3878.7,0.8159]
[1734037798581,2.57792,3879.1,3878.7,0.8159]
[1734037798809,0.0262667,3878.9,3878.7,0.8159]
[1734037799111,2.57772,3879.4,3878.7,0.8159]
[1734037799260,1.76354223,3879.6,3878.8,0.79507949]
[1734037799459,0.02626966,3879.3,3878.8,0.79507949]
[1734037799676,1.76354223,3879.6,3878.8,0.79507949]
[1734037799906,0.02537668,3879.2,3878.8,0.79507949]
[1734037800059,1.76354223,3879.6,3878.9,2.3202]
[1734037800264,1.76354223,3879.6,3879.1,0.7693]
[1734037800463,0.02537889,3879.5,3879.1,0.7693]
[1734037800664,1.76354223,3879.6,3879.2,0.57577657]
[1734037800937,0.02537815,3879.4,3879.3,0.55]
[1734037801227,2.75553474,3880.4,3879.3,0.55]
[1734037801228,2.75553474,3880.4,3879.5,0.7693]
[1734037801369,5.33260474,3880.4,3879.5,0.7693]
[1734037801570,5.33258474,3880.4,3879.5,0.7693]
[1734037801767,5.33258474,3880.4,3879.5,1.133228]
[1734037802083,5.33258474,3880.4,3879.6,0.7693]
[1734037802286,2.75553474,3880.4,3879.6,0.7693]
[1734037802465,2.75553474,3880.4,3877.9,3.02083]
[1734037802466,2.57803,3879.0,3878.9,0.8163]
[1734037802819,2.57803,3879.0,3877.3,0.312881]
[1734037802820,2.57804,3879.0,3878.3,0.8163]
[1734037803027,2.57791,3879.1,3878.3,0.8163]
[1734037803181,2.57776,3879.4,3878.3,0.8163]
[1734037803523,2.57828,3878.6,3878.3,0.8163]
[1734037803673,0.0226423,3879.2,3878.3,0.8163]
[1734037803861,2.80871358,3879.3,3878.3,0.8163]
[1734037804098,2.80871358,3879.3,3877.7,0.8163]
[1734037804410,2.57818,3878.7,3877.7,0.8163]